bitfinex/quotes_ETHUSD_20250507
["timestamp","ask_amount","ask_price","bid_price","bid_amount"]
[1746622615401,10.91268183,1832.8,1832.6,6.83645636]
[1746622615789,5.4564304,1832.7,1832.6,6.83645636]
[1746622617862,10.91264565,1832.8,1832.6,6.83645636]
[1746622618796,5.4564304,1832.7,1832.6,6.83645636]
[1746622619298,5.4564304,1832.7,1832.6,6.21]
[1746622620802,5.45626434,1832.8,1832.6,6.21]
[1746622621297,5.45626434,1832.8,1832.6,6.26456014]
[1746622621964,5.45626434,1832.8,1832.6,6.21]
[1746622623781,5.4564304,1832.7,1832.6,6.21]
[1746622624618,5.4564304,1832.7,1832.6,5.413]
[1746622625841,5.4564304,1832.7,1832.6,5.9948887]
[1746622626022,5.45626434,1832.8,1832.6,5.9948887]
[1746622626540,5.45626434,1832.8,1832.6,6.7847887]
[1746622627200,5.45626434,1832.8,1832.6,6.83934884]
[1746622627400,5.45626434,1832.8,1832.6,6.7847887]
[1746622627800,5.4564304,1832.7,1832.6,6.7847887]
[1746622628111,5.45626434,1832.8,1832.6,6.7847887]
[1746622628300,5.45626434,1832.8,1832.6,6.839349]
[1746622628636,10.91263023,1832.8,1832.6,6.839349]
[1746622629038,10.91263023,1832.8,1832.6,6.7847887]
[1746622629240,5.4564304,1832.7,1832.6,6.7847887]
[1746622629639,5.4564304,1832.7,1832.6,5.9948887]
[1746622632051,5.4564304,1832.7,1832.6,5.413]
[1746622640384,6.25662814,1832.6,1832.5,23.32964794]
[1746622640682,6.25662814,1832.6,1832.5,28.74164794]
[1746622640839,6.25662814,1832.6,1832.5,25.073]
[1746622643370,8.55502083,1832.6,1832.5,25.073]
[1746622643745,6.25662814,1832.6,1832.5,25.073]
[1746622649661,6.25662814,1832.6,1832.5,5.412]
[1746622654710,5.45672814,1832.6,1832.5,5.412]
[1746622661717,6.25372814,1832.6,1832.5,5.412]
[1746622670036,5.45791944,1832.2,1832.1,0.84907182]
[1746622670236,5.45791944,1832.2,1832.1,6.2055]
[1746622671844,5.45748126,1832.4,1832.2,0.7678]
[1746622673226,5.45762156,1832.3,1832.2,0.7678]
[1746622677338,5.45762156,1832.3,1832.2,1.39113752]
[1746622681974,5.45762156,1832.3,1832.2,6.80213752]
[1746622682146,5.05762156,1832.3,1832.2,6.80213752]
[1746622683275,5.05762156,1832.3,1832.2,6.03433752]
[1746622683576,5.05762156,1832.3,1832.2,5.411]
[1746622696615,5.45821734,1832.1,1832.0,19.663]
[1746622696813,5.45821734,1832.1,1832.0,25.073]
[1746622704539,5.45821734,1832.1,1832.0,25.8806]
[1746622705842,5.45821734,1832.1,1832.0,8.80566]
[1746622706028,5.45821734,1832.1,1832.0,6.2176]
[1746622721656,5.45821734,1832.1,1832.0,5.41]
[1746622729524,6.25331734,1832.1,1832.0,5.41]
[1746622729724,7.89358858,1832.1,1832.0,5.41]
[1746622729927,6.25331734,1832.1,1832.0,5.41]
[1746622740654,5.45821734,1832.1,1832.0,6.7565]
[1746622753101,5.45821734,1832.1,1832.0,5.951]
[1746622753305,5.45821734,1832.1,1832.0,5.41]
[1746622753909,5.45851528,1832.0,1831.9,23.34988654]
[1746622754123,5.45851528,1832.0,1831.9,28.75588654]
[1746622755911,5.45851528,1832.0,1831.9,23.34988654]
[1746622756088,5.45851528,1832.0,1831.9,28.75588654]
[1746622756487,5.45851528,1832.0,1831.9,25.075]
[1746622768525,5.45851528,1832.0,1831.9,25.75586502]
[1746622768749,0.829,1832.5,1832.0,0.7786]
[1746622768891,0.02,1834.1,1832.4,0.794]
[1746622768892,5.45692421,1832.6,1832.4,0.794]
[1746622769097,5.45692421,1832.6,1832.5,5.406]
[1746622770450,5.45655912,1832.7,1832.5,5.406]
[1746622770735,5.45672814,1832.6,1832.5,5.406]
[1746622771442,5.45660159,1832.7,1832.5,5.406]
[1746622772608,5.45660159,1832.7,1832.5,6.03145654]
[1746622773538,5.45672814,1832.6,1832.5,6.03145654]
[1746622777243,5.45660159,1832.7,1832.5,6.03145654]
[1746622778046,10.91328667,1832.7,1832.5,6.03145654]
[1746622779051,5.45672814,1832.6,1832.5,6.03145654]
[1746622780946,5.45672814,1832.6,1832.5,5.406]
[1746622800336,5.45660159,1832.7,1832.5,5.406]
[1746622800535,5.45672814,1832.6,1832.5,5.406]
[1746622802268,5.45732372,1832.4,1832.3,19.664]
[1746622802433,5.45732372,1832.4,1832.3,25.065]
[1746622811196,5.45732372,1832.4,1832.3,5.401]
[1746622821735,5.45821734,1832.1,1831.9,23.34588654]
[1746622822043,5.45851528,1832.0,1831.9,23.34588654]
[1746622822248,5.45851528,1832.0,1831.9,28.74588654]
[1746622825614,5.45851528,1832.0,1831.9,25.065]
[1746622829831,5.45851528,1832.0,1831.9,25.066]
[1746622830331,6.25141528,1832.0,1831.9,25.066]
[1746622833740,9.25141528,1832.0,1831.9,25.066]
[1746622836051,9.25141528,1832.0,1831.9,5.401]
[1746622837758,6.25141528,1832.0,1831.9,5.401]
[1746622839551,6.80141528,1832.0,1831.9,5.401]
[1746622840528,6.80141528,1832.0,1831.1,19.67]
[1746622840529,5.46060175,1831.3,1831.1,19.67]
[1746622840728,5.46089995,1831.2,1831.1,19.67]
[1746622841038,5.46089995,1831.2,1831.1,25.07]
[1746622842430,5.46089995,1831.2,1831.1,19.67]
[1746622842629,5.46089995,1831.2,1831.1,25.071]
[1746622850430,9.80259995,1831.2,1831.1,5.401]
[1746622850631,5.46328671,1830.4,1830.3,24.12568654]
[1746622850858,5.46328671,1830.4,1830.3,29.52768654]
[1746622851532,5.46328671,1830.4,1830.3,25.8468]
[1746622852836,5.46328671,1830.4,1830.3,6.1688]
[1746622853447,5.46328671,1830.4,1830.3,5.402]
[1746622864767,6.29008671,1830.4,1830.3,5.402]
[1746622865084,9.29008671,1830.4,1830.3,5.402]
[1746622867394,5.46448087,1830.0,1829.9,20.4488]
[1746622867560,5.46448087,1830.0,1829.9,25.8528]
[1746622867760,5.46448087,1830.0,1829.9,25.084]
[1746622873094,5.46431383,1830.1,1830.0,0.7972]
[1746622873391,5.46379047,1830.3,1830.0,0.7972]
[1746622873689,5.46418228,1830.1,1830.0,0.7972]
[1746622874594,5.46401019,1830.2,1830.0,0.7972]
[1746622875523,5.46343532,1830.4,1830.0,0.85183939]
[1746622875701,5.46371457,1830.3,1830.2,0.8122]
[1746622875885,5.46371457,1830.3,1830.2,6.2162]
[1746622876901,5.46332698,1830.4,1830.2,6.2162]
[1746622877063,10.92688211,1830.4,1830.2,7.15152236]
[1746622877973,5.46332698,1830.4,1830.2,7.15152236]
[1746622878672,5.46313822,1830.5,1830.3,3.95452358]
[1746622879292,5.46328671,1830.4,1830.3,0.8175]
[1746622884429,5.46366654,1830.3,1830.1,0.7599]
[1746622884604,5.46366654,1830.3,1830.2,5.404]
[1746622892543,11.60069012,1830.3,1830.2,5.404]
[1746622893106,12.41249012,1830.3,1830.2,5.404]
[1746622895649,9.27546654,1830.3,1830.2,5.404]
[1746622898258,8.46366654,1830.3,1830.2,5.404]
[1746622898459,5.46366654,1830.3,1830.2,5.404]
[1746622907975,12.90409012,1830.3,1830.2,5.404]
[1746622910081,5.46477949,1829.9,1829.8,0.03151858]
[1746622910242,5.46477949,1829.9,1829.8,5.43551858]
[1746622913267,5.46436674,1830.1,1829.9,0.8105]
[1746622914353,10.92882047,1830.1,1829.9,0.8105]
[1746622914646,5.46436674,1830.1,1829.9,0.8105]
[1746622915391,5.46448087,1830.0,1829.9,0.8105]
[1746622915892,5.46436674,1830.1,1829.9,0.8105]
[1746622915893,5.46422376,1830.1,1829.9,0.8105]
[1746622916066,5.46448087,1830.0,1829.9,0.8105]
[1746622922128,5.46477949,1829.9,1829.8,6.23051858]
[1746622922529,5.46477949,1829.9,1829.8,5.43551858]
[1746622922876,5.46477949,1829.9,1829.8,6.25111858]
[1746622925014,5.46465928,1830.0,1829.8,6.87623044]
[1746622925784,10.92938408,1830.0,1829.8,6.87623044]
[1746622926411,5.46465928,1830.0,1829.8,6.87623044]
[1746622926597,10.92942723,1830.0,1829.8,6.87623044]
[1746622926916,5.46477949,1829.9,1829.8,6.87623044]
[1746622927227,5.46465928,1830.0,1829.8,6.87623044]
[1746622927522,10.92937126,1830.0,1829.8,6.87623044]
[1746622927724,5.46465928,1830.0,1829.8,6.87623044]
[1746622927885,10.92942991,1830.0,1829.8,6.87623044]
[1746622928180,10.92938447,1830.0,1829.8,6.87623044]
[1746622928380,5.46465928,1830.0,1829.8,6.87623044]
[1746622928725,10.92940055,1830.0,1829.8,6.87623044]
[1746622929590,5.46477949,1829.9,1829.8,6.87623044]
[1746622930019,5.46465928,1830.0,1829.8,6.87623044]
[1746622930189,10.92943202,1830.0,1829.8,6.87623044]
[1746622930640,5.46465928,1830.0,1829.8,6.87623044]
[1746622931623,10.92942238,1830.0,1829.8,6.87623044]
[1746622931830,3.0,1830.5,1829.8,6.06063044]
[1746622932000,5.46379914,1830.3,1830.2,3.13702358]
[1746622932320,5.46379914,1830.3,1830.2,9.30032358]
[1746622932498,5.46379914,1830.3,1830.2,6.1633]
[1746622936320,5.4635852,1830.3,1830.2,6.1633]
[1746622936527,5.46341662,1830.4,1830.2,6.1633]
[1746622937035,10.92699879,1830.4,1830.2,6.1633]
[1746622937349,5.4635852,1830.3,1830.2,6.1633]
[1746622938537,5.4635852,1830.3,1830.2,5.404]
[1746622940424,5.4635852,1830.3,1830.2,5.9444]
[1746622941198,5.4635852,1830.3,1830.2,5.404]
[1746622944753,5.4635852,1830.3,1830.2,6.2286]
[1746622945348,5.46298504,1830.6,1830.2,5.404]
[1746622945511,5.46249063,1830.7,1830.3,9.41344438]
[1746622945717,5.46249063,1830.7,1830.4,0.7583]
[1746622946012,5.46249063,1830.7,1830.5,3.13702358]
[1746622946213,5.46249063,1830.7,1830.6,5.403]
[1746622949654,5.46298825,1830.5,1830.3,3.13702358]
[1746622949861,5.46348996,1830.4,1830.2,4.46938654]
[1746622950168,5.46348996,1830.4,1830.3,5.402]
[1746622952101,5.4635852,1830.3,1830.2,3.68088654]
[1746622952301,5.4635852,1830.3,1830.2,9.08288654]
[1746622952746,5.4635852,1830.3,1830.2,5.402]
[1746622953875,5.4635852,1830.3,1830.0,19.69]
[1746622953876,5.46418228,1830.1,1830.0,19.69]
[1746622954063,5.46418228,1830.1,1830.0,25.092]
[1746622954465,6.25948228,1830.1,1830.0,25.092]
[1746622954757,5.46418228,1830.1,1830.0,25.092]
[1746622956138,6.25768228,1830.1,1830.0,19.69]
[1746622956338,5.46418228,1830.1,1830.0,25.092]
[1746622957599,5.46418228,1830.1,1830.0,30.81998358]
[1746622958795,5.46418228,1830.1,1830.0,25.092]
[1746622967805,5.46401563,1830.2,1830.0,25.092]
[1746622968100,5.46418228,1830.1,1830.0,25.092]
[1746622970314,5.46401563,1830.2,1830.0,25.092]
[1746622970511,5.46370171,1830.3,1830.0,28.22902358]
[1746622970668,10.92754103,1830.3,1830.1,3.63343909]
[1746622970993,5.46388372,1830.2,1830.1,3.63343909]
[1746622971175,5.46388372,1830.2,1830.1,3.57880236]
[1746622974227,5.46418228,1830.1,1830.0,28.22902358]
[1746622974385,5.46418228,1830.1,1830.0,25.092]
[1746622975498,5.46402336,1830.2,1830.0,25.092]
[1746622976133,5.46418228,1830.1,1830.0,25.092]
[1746622977502,5.46418228,1830.1,1830.0,5.402]
[1746622977932,5.46418228,1830.1,1830.0,6.89162865]
[1746622979338,5.46402336,1830.2,1830.0,6.89162865]
[1746622979986,10.92817552,1830.2,1830.0,6.89162865]
[1746622980186,5.46402336,1830.2,1830.0,6.89162865]
[1746622980416,10.92815811,1830.2,1830.0,6.89162865]
[1746622980627,5.46418228,1830.1,1830.0,6.89162865]
[1746622980839,5.46402336,1830.2,1830.0,6.89162865]
[1746622982452,10.92817436,1830.2,1830.0,6.89162865]
[1746622982845,5.46418228,1830.1,1830.0,6.89162865]
[1746622983043,5.46418228,1830.1,1830.0,5.402]
[1746622986830,5.46448087,1830.0,1829.9,5.0]
[1746622987121,5.46448087,1830.0,1829.9,10.403]
[1746622989030,6.23448087,1830.0,1829.9,10.403]
[1746622989227,6.23448087,1830.0,1829.9,5.0]
[1746622989434,6.23448087,1830.0,1829.9,10.403]
[1746622992042,5.46448087,1830.0,1829.9,10.403]
[1746622999857,6.22118087,1830.0,1829.9,10.403]
[1746623000866,5.46448087,1830.0,1829.9,10.403]
[1746623022295,5.46448087,1830.0,1829.9,5.403]
[1746623025597,5.46328671,1830.4,1830.0,0.7818]
[1746623025916,5.46396478,1830.2,1830.1,3.13702358]
[1746623026105,5.46396478,1830.2,1830.0,0.83643896]
[1746623026267,5.46396478,1830.2,1830.0,0.7818]
[1746623026465,5.46418228,1830.1,1830.0,1.71398236]
[1746623027970,5.46396478,1830.2,1830.0,1.71398236]
[1746623028599,5.46372098,1830.3,1830.0,1.71398236]
[1746623028806,5.46372098,1830.3,1830.1,0.05463624]
[1746623029104,5.46308343,1830.5,1830.1,3.90172358]
[1746623029267,5.46308343,1830.5,1830.3,0.7647]
[1746623029471,0.7779,1831.0,1830.4,5.403]
[1746623029802,10.9252284,1830.7,1830.5,0.7939]
[1746623030465,5.46268982,1830.6,1830.5,0.7939]
[1746623030680,5.46256017,1830.7,1830.5,0.7939]
[1746623031316,5.46256017,1830.7,1830.5,1.41905301]
[1746623031693,5.46268982,1830.6,1830.5,1.41905301]
[1746623032700,5.46328671,1830.4,1830.3,0.8288]
[1746623033004,5.46328671,1830.4,1830.3,6.2308]
[1746623034167,5.46298825,1830.5,1830.3,6.2308]
[1746623035105,5.46286975,1830.6,1830.3,6.28542874]
[1746623035509,6.28464911,1830.9,1830.3,6.28542874]
[1746623035805,10.92583163,1830.6,1830.4,0.62854287]
[1746623036205,5.46298825,1830.5,1830.4,0.62854287]
[1746623036868,5.46292369,1830.6,1830.4,0.62854287]
[1746623037070,10.92590147,1830.6,1830.4,0.62854287]
[1746623037400,5.46292369,1830.6,1830.4,0.62854287]
[1746623037600,5.46229289,1830.8,1830.5,0.8161262]
[1746623037804,5.46196789,1830.9,1830.6,3.95872358]
[1746623038006,5.46196789,1830.9,1830.7,5.85248999]
[1746623038996,10.92400311,1830.9,1830.7,5.85248999]
[1746623039398,5.46196789,1830.9,1830.7,5.85248999]
[1746623039783,10.92402615,1830.9,1830.7,5.85248999]
[1746623040199,10.92398978,1830.9,1830.7,5.85248999]
[1746623040522,5.46196789,1830.9,1830.7,5.85248999]
[1746623040709,10.92400526,1830.9,1830.7,5.85248999]
[1746623041024,10.92403187,1830.9,1830.7,5.85248999]
[1746623041329,5.46209307,1830.8,1830.7,5.79787236]
[1746623042092,5.46209307,1830.8,1830.7,5.402]
[1746623042287,6.25729307,1830.8,1830.7,5.402]
[1746623042492,6.25729307,1830.8,1830.5,19.689]
[1746623042493,5.46268982,1830.6,1830.5,19.689]
[1746623042716,5.46268982,1830.6,1830.5,25.09]
[1746623043445,9.3949134,1830.6,1830.5,25.09]
[1746623046317,12.3949134,1830.6,1830.5,25.09]
[1746623049730,12.3949134,1830.6,1830.5,5.401]
[1746623052725,9.25788982,1830.6,1830.5,5.401]
[1746623052918,8.46268982,1830.6,1830.5,5.401]
[1746623053113,5.46268982,1830.6,1830.5,5.401]
[1746623053315,5.46268982,1830.6,1830.5,5.9411]
[1746623054237,5.4625216,1830.7,1830.6,0.8157]
[1746623061757,5.46268982,1830.6,1830.5,5.401]
[1746623063580,6.21778982,1830.6,1830.5,5.401]
[1746623066574,9.21778982,1830.6,1830.5,5.401]
[1746623081133,5.46268982,1830.6,1830.5,5.401]
[1746623081411,5.46268982,1830.6,1830.5,6.2246]
[1746623084120,5.46268982,1830.6,1830.5,5.401]
[1746623087029,5.46268982,1830.6,1830.5,5.401]
[1746623101935,6.26298982,1830.6,1830.5,5.401]
[1746623106446,5.46268982,1830.6,1830.5,5.401]
[1746623107969,5.46268982,1830.6,1830.2,0.8126]
[1746623107970,5.4635852,1830.3,1830.2,0.8126]
[1746623108164,5.4635852,1830.3,1830.2,6.2226]
[1746623108735,5.4635852,1830.3,1830.2,6.84486]
[1746623113772,5.46342079,1830.4,1830.2,6.03226]
[1746623113972,5.46342079,1830.4,1830.3,0.86973139]
[1746623114174,5.46342079,1830.4,1830.3,0.8151]
[1746623115980,5.4635852,1830.3,1830.2,1.38266]
[1746623116190,5.4635852,1830.3,1830.2,0.7604]
[1746623116481,5.4635852,1830.3,1830.2,5.41]
[1746623116779,5.46388372,1830.2,1830.1,0.7604]
[1746623116967,5.46448087,1830.0,1829.9,4.43808654]
[1746623117164,5.46448087,1830.0,1829.9,9.84608654]
[1746623117983,5.46448087,1830.0,1829.9,9.08888654]
[1746623120090,5.46448087,1830.0,1829.9,5.408]
[1746623123497,5.46448087,1830.0,1829.8,19.72051858]
[1746623123498,5.46477949,1829.9,1829.8,19.72051858]
[1746623123712,5.46477949,1829.9,1829.8,25.12951858]
[1746623124003,8.60180307,1829.9,1829.8,25.12951858]
[1746623124799,11.60180307,1829.9,1829.8,25.12951858]
[1746623124972,16.08992665,1829.9,1829.8,0.03151858]
[1746623126566,12.95290307,1829.9,1829.8,0.03151858]
[1746623127263,16.08992665,1829.9,1829.8,0.03151858]
[1746623127496,12.95290307,1829.9,1829.8,0.03151858]
[1746623128199,16.08992665,1829.9,1829.8,0.03151858]
[1746623128378,26.28992665,1829.9,1829.8,0.03151858]
[1746623128578,5.46567555,1829.6,1829.5,0.1027246]
[1746623128799,12.35519913,1829.6,1829.5,0.1027246]
[1746623131105,12.90519913,1829.6,1829.5,0.1027246]
[1746623131406,12.90519913,1829.6,1829.5,0.0527246]
[1746623134897,9.90519913,1829.6,1829.5,0.0527246]
[1746623135109,12.90519913,1829.6,1829.5,0.0527246]
[1746623135424,9.23256964,1829.1,1829.0,0.1379]
[1746623135584,12.36959322,1829.1,1829.0,0.1379]
[1746623135780,12.91959322,1829.1,1829.0,0.1379]
[1746623137824,5.46896363,1828.5,1828.4,2.16471855]
[1746623138108,8.60598721,1828.5,1828.4,2.16471855]
[1746623138633,5.46896363,1828.5,1828.4,2.16471855]
[1746623139188,8.60598721,1828.5,1828.4,2.16471855]
[1746623139903,5.46896363,1828.5,1828.4,2.16471855]
[1746623144117,8.60598721,1828.5,1828.4,2.16471855]
[1746623145532,5.46896363,1828.5,1828.4,2.16471855]
[1746623157698,9.25176363,1828.5,1828.4,2.16471855]
[1746623157985,9.80176363,1828.5,1828.4,2.16471855]
[1746623158983,8.46896363,1828.5,1828.4,2.16471855]
[1746623160991,11.60598721,1828.5,1828.4,2.16471855]
[1746623162368,5.46896363,1828.5,1828.4,2.16471855]
[1746623162554,5.46896363,1828.5,1828.4,2.92371855]
[1746623170267,5.46878841,1828.6,1828.4,2.92371855]
[1746623170467,5.46848321,1828.7,1828.5,0.775]
[1746623170701,5.46848321,1828.7,1828.6,6.2368]
[1746623173692,5.46819664,1828.8,1828.6,6.2368]
[1746623173915,5.4683655,1828.7,1828.6,6.2368]
[1746623177301,5.4683655,1828.7,1828.6,5.434]
[1746623178323,5.4683655,1828.7,1828.6,6.2046]
[1746623179628,5.4683655,1828.7,1828.6,6.82506]
[1746623183849,5.46762946,1829.0,1828.7,0.7885]
[1746623184050,5.46762946,1829.0,1828.9,0.7885]
[1746623189364,5.4673,1829.1,1828.9,0.7885]
[1746623189543,5.4673,1829.1,1829.0,5.448]
[1746623189745,5.4673,1829.1,1829.0,6.8087]
[1746623192458,5.46691024,1829.2,1829.1,0.7863]
[1746623192749,5.46691024,1829.2,1829.1,0.8409661]
[1746623193155,5.46691024,1829.2,1829.1,0.7863]
[1746623194056,5.46716964,1829.1,1829.0,5.448]
[1746623206673,8.46716964,1829.1,1829.0,5.448]
[1746623208577,5.4683655,1828.7,1828.6,25.149]
[1746623209877,5.46819718,1828.8,1828.6,25.149]
[1746623210176,5.46819718,1828.8,1828.7,0.8264]
[1746623210355,5.46819718,1828.8,1828.7,3.42394]
[1746623212580,5.46819718,1828.8,1828.7,2.59754]
[1746623212783,5.4683655,1828.7,1828.6,25.149]
[1746623216960,6.2367655,1828.7,1828.6,25.149]
[1746623218786,6.2367655,1828.7,1828.6,5.447]
[1746623219496,5.46896363,1828.5,1828.4,2.16471855]
[1746623219684,6.27826363,1828.5,1828.4,7.60871855]
[1746623222017,5.46896363,1828.5,1828.4,7.60871855]
[1746623235041,5.46896363,1828.5,1828.4,8.37401855]
[1746623242731,5.46896363,1828.5,1828.4,7.60871855]
[1746623244811,5.46781622,1828.9,1828.4,7.60871855]
[1746623244812,6.93891568,1830.5,1828.9,34.260504]
[1746623245149,6.93891568,1830.5,1830.4,7.07934716]
[1746623245309,13.4521497,1830.9,1830.4,13.08334716]
[1746623245508,13.4521497,1830.9,1830.8,3.13702358]
[1746623245710,5.46227668,1830.8,1830.4,6.8093]
[1746623245959,5.46286625,1830.6,1830.4,6.8093]
[1746623246243,5.46339823,1830.4,1830.1,0.8078]
[1746623246442,11.91605049,1830.9,1830.1,0.8078]
[1746623246443,5.46290573,1830.6,1830.1,0.8078]
[1746623246745,10.92588635,1830.6,1830.1,0.8078]
[1746623246923,5.46301646,1830.5,1830.1,0.8078]
[1746623247327,6.46301646,1830.5,1830.1,0.8078]
[1746623249049,1.0,1830.5,1830.1,0.8078]
[1746623249252,5.46418228,1830.1,1830.0,0.50649784]
[1746623249438,5.46418228,1830.1,1829.9,6.004]
[1746623249439,5.46448087,1830.0,1829.9,6.004]
[1746623249643,5.46477949,1829.9,1829.8,3.68088654]
[1746623249966,5.46477949,1829.9,1829.6,3.68088654]
[1746623250115,5.46498365,1829.9,1829.6,3.68088654]
[1746623250751,5.46508989,1829.8,1829.6,3.68088654]
[1746623251049,5.46537683,1829.7,1829.6,3.68088654]
[1746623251592,5.46517317,1829.8,1829.6,3.68088654]
[1746623252456,5.46517317,1829.8,1829.4,6.05665736]
[1746623252628,5.46517317,1829.8,1829.4,6.002]
[1746623253025,6.2321151,1829.9,1829.4,6.002]
[1746623253328,5.46523301,1829.8,1829.4,6.002]
[1746623253524,5.46490848,1829.9,1829.5,0.05465451]
[1746623254557,5.46463183,1830.0,1829.5,0.05465451]
[1746623254742,5.46479899,1829.9,1829.5,0.05465451]
[1746623255655,5.46463922,1830.0,1829.5,0.05465451]
[1746623255817,5.46463922,1830.0,1829.5,1.20693535]
[1746623256515,5.80783108,1830.0,1829.4,6.002]
[1746623256719,5.80783108,1829.8,1829.4,6.002]
[1746623256975,5.80783108,1829.6,1829.2,0.7863]
[1746623257121,5.46537683,1829.7,1829.2,6.8409577]
[1746623257327,5.46569197,1829.6,1829.2,6.8409577]
[1746623257643,5.46480036,1829.9,1829.2,7.52505347]
[1746623257896,5.46657191,1829.3,1829.2,6.0]
[1746623258156,5.46645424,1829.4,1829.2,6.0]
[1746623258921,5.46637968,1829.4,1829.2,6.0]
[1746623259166,5.46612013,1829.5,1829.2,6.0]
[1746623259341,5.4663931,1829.4,1829.2,6.0]
[1746623259538,5.46615244,1829.5,1829.2,6.0]
[1746623259772,5.4663597,1829.4,1829.2,6.0]
[1746623260647,5.46657191,1829.3,1829.2,6.0]
[1746623261172,5.80783108,1829.6,1829.2,6.0]
[1746623261370,5.46657191,1829.3,1829.2,6.0]
[1746623261735,5.46646495,1829.4,1829.2,6.0]
[1746623261935,5.46657191,1829.3,1829.2,6.0]
[1746623262174,5.4664784,1829.4,1829.2,6.0]
[1746623262733,10.93302946,1829.4,1829.2,6.0]
[1746623263176,5.4664784,1829.4,1829.2,6.0]
[1746623264779,10.93300892,1829.4,1829.2,6.0]
[1746623264963,5.46657191,1829.3,1829.2,6.0]
[1746623267077,5.46631529,1829.4,1829.2,6.0]
[1746623268588,5.46643138,1829.4,1829.2,6.0]
[1746623268883,10.93300154,1829.4,1829.2,6.0]
[1746623269038,5.46643138,1829.4,1829.2,6.0]
[1746623269444,10.93298294,1829.4,1829.2,6.0]
[1746623269690,10.93295666,1829.4,1829.2,6.0]
[1746623269842,5.46643138,1829.4,1829.2,6.0]
[1746623270877,10.93293682,1829.4,1829.2,6.0]
[1746623271084,5.46643138,1829.4,1829.2,6.0]
[1746623271762,5.46643138,1829.4,1829.3,6.001]
[1746623275860,5.46643138,1829.4,1828.6,23.37988654]
[1746623275861,5.46784523,1828.9,1828.8,5.96]
[1746623277908,5.46784523,1828.9,1828.6,19.699]
[1746623278112,5.46819996,1828.8,1828.6,19.699]
[1746623278306,5.4683655,1828.7,1828.6,19.699]
[1746623279239,5.46824393,1828.8,1828.6,19.699]
[1746623279642,10.93654543,1828.8,1828.6,19.699]
[1746623280453,5.46824393,1828.8,1828.6,19.699]
[1746623280629,5.46793055,1828.9,1828.6,22.2649]
[1746623280829,10.93595821,1828.9,1828.6,22.2649]
[1746623281058,5.46809189,1828.8,1828.6,22.2649]
[1746623282362,5.4683655,1828.7,1828.6,22.2649]
[1746623283863,5.46809189,1828.8,1828.6,22.2649]
[1746623284947,10.93639985,1828.8,1828.6,22.2649]
[1746623285357,5.4683655,1828.7,1828.6,19.699]
[1746623285547,5.46809189,1828.8,1828.6,19.699]
[1746623289366,10.93640291,1828.8,1828.6,19.699]
[1746623289661,5.46809189,1828.8,1828.6,19.699]
[1746623289865,10.93640455,1828.8,1828.6,19.699]
[1746623290163,5.46809189,1828.8,1828.6,19.699]
[1746623290467,5.4683655,1828.7,1828.6,19.699]
[1746623291525,5.4683655,1828.7,1828.5,5.96]
[1746623292064,5.46809189,1828.8,1828.5,6.85196185]
[1746623292361,5.46809189,1828.8,1828.5,6.90664368]
[1746623293153,5.46809189,1828.8,1828.6,0.30639213]
[1746623293315,5.46809189,1828.8,1828.6,0.81703991]
[1746623296887,10.93593243,1828.9,1828.6,0.81703991]
[1746623297054,10.93593243,1828.9,1828.6,0.51064778]
[1746623297458,5.46814224,1828.8,1828.6,0.51064778]
[1746623298995,5.46814224,1828.8,1828.6,0.8172895]
[1746623299993,5.46814224,1828.8,1828.6,0.51064778]
[1746623300362,5.46814224,1828.8,1828.5,6.90664368]
[1746623300799,5.46759633,1829.0,1828.6,1.20201918]
[1746623300984,5.46759633,1829.0,1828.8,0.7967]
[1746623301191,5.46735619,1829.1,1828.8,0.7967]
[1746623301882,5.467486,1829.0,1828.8,0.7967]
[1746623302261,5.46776751,1828.9,1828.8,0.7967]
[1746623302597,5.46776751,1828.9,1828.8,1.30819353]
[1746623302750,5.467486,1829.0,1828.8,1.30819353]
[1746623302970,10.93521832,1829.0,1828.8,7.26919353]
[1746623303310,10.93521832,1829.0,1828.8,6.7577]
[1746623303912,5.46776751,1828.9,1828.8,6.7577]
[1746623304413,5.46776751,1828.9,1828.8,7.26974609]
[1746623305115,5.46776751,1828.9,1828.8,7.57704498]
[1746623305417,8.61076133,1829.0,1828.8,7.57704498]
[1746623305599,5.46776751,1828.9,1828.8,7.57704498]
[1746623305783,8.61076133,1829.0,1828.8,7.57704498]
[1746623305987,5.46776751,1828.9,1828.8,5.961]
[1746623306984,5.46708235,1829.2,1828.8,7.03470668]
[1746623307200,5.46733696,1829.1,1828.9,0.05467077]
[1746623307506,5.46733696,1829.1,1828.9,0.56697715]
[1746623307706,5.46733696,1829.1,1829.0,0.51230638]
[1746623308206,5.46733696,1829.1,1829.0,0.81971306]
[1746623311423,5.46716964,1829.1,1829.0,0.81971306]
[1746623317418,5.46716964,1829.1,1829.0,0.30740668]
[1746623317919,6.29626964,1829.1,1829.0,0.30740668]
[1746623318729,5.46746856,1829.0,1828.9,3.68088654]
[1746623319520,5.46746856,1829.0,1828.9,3.98812904]
[1746623319695,5.46746856,1829.0,1828.9,0.3072425]
[1746623320019,5.46776751,1828.9,1828.8,5.961]
[1746623320525,5.46776751,1828.9,1828.8,6.47312238]
[1746623320731,5.46776751,1828.9,1828.8,6.78039567]
[1746623321416,5.46776751,1828.9,1828.8,13.39928411]
[1746623321742,5.46776751,1828.9,1828.8,12.88716173]
[1746623322025,5.46776751,1828.9,1828.8,12.57988844]
[1746623323919,5.46776751,1828.9,1828.8,5.961]
[1746623327439,6.29726751,1828.9,1828.8,5.961]
[1746623329731,5.4683655,1828.7,1828.6,9.50588654]
[1746623333848,5.4683655,1828.7,1828.6,5.825]
[1746623346623,6.2706655,1828.7,1828.6,5.825]
[1746623346818,5.46896363,1828.5,1828.4,2.16471855]
[1746623347644,6.27326363,1828.5,1828.4,2.16471855]
[1746623364787,6.27326363,1828.5,1828.4,2.11461855]
[1746623368673,9.27326363,1828.5,1828.4,2.11461855]
[1746623370273,23.16795844,1828.5,1828.4,2.11461855]
[1746623370474,5.46956188,1828.3,1828.2,0.005]
[1746623370694,9.81735744,1827.7,1827.6,0.4145198]
[1746623370883,12.41205225,1827.7,1827.6,0.4145198]
[1746623371712,6.26735744,1827.7,1827.6,0.4145198]
[1746623371885,5.47135744,1827.7,1827.6,0.4145198]
[1746623372308,8.47165681,1827.6,1827.5,1.58108011]
[1746623372483,5.47165681,1827.6,1827.5,1.58108011]